[Event "Gibraltar Challengers B 2020"]
[Site "Caleta"]
[Date "2020.01.26"]
[Round "2.1"]
[White "Severijnen, Arjon"]
[Black "Oragwu, Chukwunonso"]
[Result "0-1"]
[ECO "B35"]
[WhiteElo "2120"]
[BlackElo "2220"]
[Annotator "NA"]
[PlyCount "142"]
[EventDate "2020.01.20"]
[EventType "swiss"]
[EventCountry "GGB"]
[SourceTitle "playchess.com"]
[Source "ChessBase"]
[SourceQuality "1"]
[TimeControl "6600+10"]

1. e4 {[%emt 0:00:00]} c5 {[%emt 0:00:38]} 2. Nf3 {[%emt 0:00:08]} Nc6 {[%emt 0:00:08]} 3. d4 {[%emt 0:00:10]} cxd4 {[%emt 0:00:05]} 4. Nxd4 {[%emt 0:00:05]} g6 {[%emt 0:00:04]} 5. Nc3 {[%emt 0:00:22]} Bg7 {[%emt 0:00:05]} 6. Be3 {[%emt 0:00:18]} Nf6 {[%emt 0:00:04]} 7. Bc4 {[%emt 0:00:41]} Qa5 {[%emt 0:00:06]} 8. O-O {[%emt 0:01:04]} O-O {[%emt 0:00:06]} 9. h3 {[%emt 0:03:02]} d6 {[%emt 0:00:57]} 10. Re1 {[%emt 0:02:06]} Bd7 {[%emt 0:00:45]} 11. Bb3 {[%emt 0:04:01]} Rac8 {[%emt 0:01:43]} 12. Nd5 {[%emt 0:05:15]} Nxd5 {[%emt 0:03:12]} 13. exd5 {[%emt 0:02:52]} Ne5 {[%emt 0:00:25]} 14. c3 {[%emt 0:12:55] B35: Sicilian: Accelerated Dragon with 5 Nc3: main line} (14. Qe2 Qc7 15. c3 {Predecessor:} Rfe8 16. a4 (16. Nb5 Bxb5 17. Qxb5 a6 18. Qb6 Qxb6 19. Bxb6 Nc4 20. Bxc4 Rxc4 21. Re2 Bf6 22. Rc1 Rec8 23. Rce1 Kf8 24. Kf1 h5 25. Re4 Rxe4 {½-½ (25) Lehaci,M (1906)-Sgircea,S (2198) Olanesti 2018}) 16... Nc4 17. Nb5 Bxb5 18. axb5 Nxe3 19. Qxe3 b6 20. Ra4 Qd7 21. Qe2 Rc5 {1-0 (53) McClymont,B (2360)-Winkelman,A (2212) Sydney 2019}) 14... Rfe8 {[%emt 0:02:20]} 15. Qe2 {[%emt 0:09:31]} Ba4 $146 {[%emt 0:05:42]} 16. Bxa4 {[%emt 0:06:56]} Qxa4 {[%emt 0:00:30]} 17. b3 {[%emt 0:00:14]} Qa5 {[%emt 0:01:27]} 18. c4 {[%emt 0:00:43]} a6 {[%emt 0:02:53]} 19. Rac1 {[%emt 0:02:59]} h6 {[%emt 0:03:42] [#]} 20. a4 {[%emt 0:02:47]} (20. f4 $1 $16) 20... Nd7 {[%emt 0:00:14]} 21. Rb1 {[%emt 0:03:09]} Qc7 {[%emt 0:00:10]} 22. Qd2 {[%emt 0:01:26]} Kh7 {[%emt 0:00:07]} 23. f4 {[%emt 0:00:51]} e5 {[%emt 0:01:42]} 24. dxe6 {[%emt 0:04:36]} fxe6 {[%emt 0:00:11]} 25. Ne2 {[%emt 0:01:32]} Rcd8 {[%emt 0:01:24]} 26. Ng3 {[%emt 0:02:29]} Nf6 {[%emt 0:01:19]} 27. a5 {[%emt 0:02:18]} Qf7 {[%emt 0:01:35]} 28. Bb6 {[%emt 0:01:12]} Rd7 {[%emt 0:00:05]} 29. Qc2 {[%emt 0:03:28]} d5 {[%emt 0:02:35]} 30. Rbd1 {[%emt 0:01:02]} h5 {[%emt 0:00:54]} 31. Bd4 {[%emt 0:06:11]} h4 {[%emt 0:03:18]} 32. Bxf6 {[%emt 0:05:44]} Bxf6 {[%emt 0:00:13]} 33. Nf1 $11 {[%emt 0:00:25]} Bd8 {[%emt 0:08:03]} 34. Qc3 {[%emt 0:05:44]} Rf8 {[%emt 0:12:57]} 35. Rd3 {[%emt 0:06:30]} dxc4 {[%emt 0:04:08]} 36. Rxd7 {[%emt 0:00:58]} Qxd7 {[%emt 0:00:03]} 37. Qxc4 {[%emt 0:00:16]} Rf6 {[%emt 0:03:12]} 38. b4 {[%emt 0:01:20]} Qd5 {[%emt 0:03:23]} 39. Re4 {[%emt 0:01:08]} Qxc4 {[%emt 0:01:15]} 40. Rxc4 {[%emt 0:00:05]} Rf7 {[%emt 0:00:24]} 41. Nd2 {[%emt 0:05:25]} Bc7 {[%emt 0:00:17]} 42. Nf3 {[%emt 0:01:26]} Bxf4 {[%emt 0:00:14]} 43. Nxh4 {[%emt 0:00:06]} g5 {[%emt 0:06:02]} 44. Nf3 {[%emt 0:00:04]} Kg6 {[%emt 0:00:18]} 45. Kf2 {[%emt 0:01:02]} Rc7 {[%emt 0:04:04]} 46. Rxc7 {[%emt 0:00:46]} Bxc7 {[%emt 0:00:02]} 47. Nd4 {[%emt 0:00:11]} Kf6 {[%emt 0:01:42]} 48. Ke3 {[%emt 0:00:26]} Bd6 {[%emt 0:00:50]} 49. Nc2 {[%emt 0:01:39]} Ke5 {[%emt 0:00:50]} 50. g3 {[%emt 0:00:31]} Be7 {[%emt 0:00:24]} 51. Kd3 {[%emt 0:00:03]} Bf8 {[%emt 0:00:57]} 52. Ke3 {[%emt 0:00:17]} Bd6 {[%emt 0:02:00]} 53. Kd3 {[%emt 0:00:08]} Kf6 {[%emt 0:00:36]} 54. g4 {[%emt 0:00:11]} Ke5 {[%emt 0:00:12]} 55. Ke3 {[%emt 0:00:01]} Kd5 {[%emt 0:02:07]} 56. Kd3 {[%emt 0:00:01]} Bf4 {[%emt 0:00:57]} 57. b5 {[%emt 0:00:28]} axb5 {[%emt 0:00:29]} 58. Nb4+ {[%emt 0:00:04]} Kc5 {[%emt 0:00:44]} 59. a6 {[%emt 0:00:01]} bxa6 {[%emt 0:00:08]} 60. Nxa6+ {[%emt 0:00:01]} Kb6 {[%emt 0:01:00]} 61. Nb4 {[%emt 0:00:01]} Bd6 {[%emt 0:00:11]} 62. Nc2 {[%emt 0:00:08]} Bc5 {[%emt 0:02:01]} 63. Ke4 {[%emt 0:00:46]} Kc6 {[%emt 0:00:16]} 64. Ke5 {[%emt 0:00:06]} Kd7 {[%emt 0:00:06]} 65. Kf6 {[%emt 0:00:02]} Be7+ {[%emt 0:00:20]} 66. Ke5 {[%emt 0:00:05]} b4 {[%emt 0:00:24]} 67. Nd4 {[%emt 0:00:26]} Bd6+ {[%emt 0:01:01]} 68. Kf6 {[%emt 0:00:10]} e5 {[%emt 0:00:14]} 69. Nb3 {[%emt 0:00:10]} e4 {[%emt 0:00:25]} 70. Kxg5 {[%emt 0:00:04]} e3 {[%emt 0:01:36]} 71. Nc1 {[%emt 0:00:14]} b3 {[%emt 0:00:51]} 0-1

[Event "Gibraltar Challengers B 2020"]
[Site "Caleta"]
[Date "2020.01.26"]
[Round "2.2"]
[White "Havik, Victor"]
[Black "Enkhtuul, Altan-Ulzii"]
[Result "0-1"]
[ECO "D70"]
[WhiteElo "2101"]
[BlackElo "2200"]
[Annotator "NA"]
[PlyCount "168"]
[EventDate "2020.01.20"]
[EventType "swiss"]
[EventCountry "GGB"]
[SourceTitle "playchess.com"]
[Source "ChessBase"]
[SourceQuality "1"]
[TimeControl "6600+10"]

1. Nf3 {[%emt 0:02:57]} Nf6 {[%emt 0:06:17]} 2. c4 {[%emt 0:00:17]} g6 {[%emt 0:00:19]} 3. Nc3 {[%emt 0:00:28]} d5 {[%emt 0:00:23]} 4. cxd5 {[%emt 0:02:30]} Nxd5 {[%emt 0:00:10]} 5. e4 {[%emt 0:00:33]} Nb6 {[%emt 0:02:21]} 6. d4 {[%emt 0:02:20]} Bg4 {[%emt 0:00:30]} 7. Be3 {[%emt 0:00:54]} Bg7 {[%emt 0:00:10]} 8. Bb5+ {[%emt 0:01:31] D70: Grünfeld: Unusual White 3rd moves (met by ...d5)} c6 {[%emt 0:00:30]} 9. Be2 {[%emt 0:00:07]} O-O {[%emt 0:00:45]} 10. Rc1 {[%emt 0:17:03]} (10. O-O N8d7 11. e5 Rc8 12. Ng5 Bxe2 13. Qxe2 h6 14. Nge4 Nd5 15. Rad1 Nxe3 16. Qxe3 Nb6 17. e6 f5 18. Nc5 {0-1 (50) Yermolinsky,A (2516)-Durarbayli,V (2624) Saint Louis 2014}) 10... N8d7 {[%emt 0:00:47]} 11. e5 $146 {[%emt 0:07:32]} ({Predecessor:} 11. O-O e5 12. d5 cxd5 13. Nxd5 Nxd5 14. Qxd5 Nf6 15. Qxe5 Re8 {½-½ (31) Fodor,T (2422)-Farkas,G (2333) Hungary 2008}) 11... Kh8 {[%emt 0:05:37]} 12. h3 {[%emt 0:00:20]} Bxf3 {[%emt 0:00:15]} 13. gxf3 {[%emt 0:00:02]} f5 {[%emt 0:06:32]} 14. Qd2 {[%emt 0:01:12]} ({Better is} 14. f4 $14) 14... Rc8 {[%emt 0:07:52]} 15. b4 {[%emt 0:03:32]} ({White should try} 15. h4 $16) 15... Qe8 {[%emt 0:10:08]} 16. h4 {[%emt 0:03:18]} Rd8 {[%emt 0:00:49]} 17. f4 {[%emt 0:01:30]} h5 {[%emt 0:09:33]} 18. Rg1 {[%emt 0:05:08]} Rg8 {[%emt 0:00:26]} 19. a4 {[%emt 0:13:10]} Nf8 {[%emt 0:01:58]} (19... a6 $14) 20. a5 $16 {[%emt 0:00:52]} Nc8 {[%emt 0:00:07]} 21. Bc4 {[%emt 0:00:13]} e6 {[%emt 0:00:06]} 22. Be2 {[%emt 0:00:27]} Ne7 {[%emt 0:08:26]} 23. Qb2 {[%emt 0:06:09]} a6 {[%emt 0:01:22]} 24. Na4 {[%emt 0:00:48]} Nd5 {[%emt 0:00:11]} 25. Nc5 {[%emt 0:00:24]} Qe7 {[%emt 0:00:26]} 26. Rh1 {[%emt 0:00:26]} Bh6 {[%emt 0:00:11]} 27. Qd2 {[%emt 0:00:06]} Rb8 {[%emt 0:02:58]} 28. Bf3 {[%emt 0:04:09]} Kh7 {[%emt 0:04:27]} 29. Be2 {[%emt 0:01:49]} Nd7 {[%emt 0:01:24]} 30. Bd3 {[%emt 0:04:54]} Bf8 {[%emt 0:04:17]} 31. Ke2 {[%emt 0:00:35]} Bh6 {[%emt 0:03:41]} 32. Kf3 {[%emt 0:01:00]} Rgd8 {[%emt 0:01:41]} 33. Kg3 {[%emt 0:01:05]} Nxc5 {[%emt 0:05:09]} 34. bxc5 {[%emt 0:00:20]} Rd7 {[%emt 0:00:18]} 35. Rcd1 {[%emt 0:04:54]} Rbd8 {[%emt 0:00:40]} 36. Bc4 {[%emt 0:06:25]} Nc7 {[%emt 0:06:10]} 37. Qa2 {[%emt 0:02:20]} Re8 {[%emt 0:00:24]} 38. Rd3 {[%emt 0:01:19]} Nb5 {[%emt 0:01:04]} 39. Rhd1 {[%emt 0:00:37]} Bf8 {[%emt 0:01:08]} 40. Qb3 {[%emt 0:02:56]} Rdd8 {[%emt 0:02:08]} 41. Kh3 {[%emt 0:00:19]} Bh6 {[%emt 0:03:32]} 42. Rg1 {[%emt 0:00:35]} Qf7 {[%emt 0:02:54]} 43. Rg3 {[%emt 0:01:06]} Re7 {[%emt 0:00:20]} 44. Rd1 {[%emt 0:00:08]} Rg8 {[%emt 0:02:17]} 45. Rdg1 {[%emt 0:00:40]} Qe8 {[%emt 0:01:43]} 46. R3g2 {[%emt 0:03:11]} Qd7 {[%emt 0:00:55]} 47. Qb2 {[%emt 0:01:18]} Qd8 {[%emt 0:00:23]} 48. Be2 {[%emt 0:00:52]} Rgg7 {[%emt 0:00:16]} 49. Qb4 {[%emt 0:00:25]} Rd7 {[%emt 0:00:24]} 50. Rd1 {[%emt 0:00:24]} Rde7 {[%emt 0:01:25]} 51. Rgg1 {[%emt 0:00:24]} Qd5 {[%emt 0:00:24]} 52. Kg3 {[%emt 0:01:01]} Qd8 {[%emt 0:01:12]} 53. Bc4 {[%emt 0:00:15]} Re8 {[%emt 0:00:22]} 54. Rd3 {[%emt 0:00:17]} Rd7 {[%emt 0:00:10]} 55. Rgd1 {[%emt 0:00:19]} Bf8 {[%emt 0:00:30]} 56. Qb3 {[%emt 0:00:24]} Rde7 {[%emt 0:00:11]} 57. Qa2 {[%emt 0:00:10]} Nc7 {[%emt 0:00:11]} 58. Rb1 {[%emt 0:00:11]} Nb5 {[%emt 0:00:15]} 59. Rbd1 {[%emt 0:00:03]} Qc8 {[%emt 0:00:18]} 60. Kh3 {[%emt 0:00:11]} Nc7 {[%emt 0:00:06]} 61. Rb1 {[%emt 0:00:08]} Nb5 {[%emt 0:00:10]} 62. Rbd1 {[%emt 0:00:03]} Bh6 {[%emt 0:00:04]} 63. Kg3 {[%emt 0:00:03]} Rd8 {[%emt 0:00:04]} 64. Kf3 {[%emt 0:00:25]} Qd7 {[%emt 0:00:05]} 65. Kg3 {[%emt 0:00:34]} Rde8 {[%emt 0:00:05]} 66. Bxb5 {[%emt 0:00:13]} axb5 {[%emt 0:00:05]} 67. a6 {[%emt 0:00:01]} bxa6 {[%emt 0:00:09]} 68. Qxa6 {[%emt 0:00:01]} Qd5 {[%emt 0:00:01]} 69. Ra1 {[%emt 0:00:14]} Qe4 {[%emt 0:00:12]} 70. Rda3 {[%emt 0:00:06]} Rd8 {[%emt 0:00:10]} 71. Qb6 {[%emt 0:00:14]} Rxd4 {[%emt 0:00:15]} 72. Ra7 {[%emt 0:00:03]} Bxf4+ {[%emt 0:00:03]} 73. Bxf4 {[%emt 0:00:01]} Qxf4+ {[%emt 0:00:01]} 74. Kg2 {[%emt 0:00:01]} Qe4+ {[%emt 0:00:06]} 75. Kf1 {[%emt 0:00:03]} Qd3+ {[%emt 0:00:13]} 76. Kg2 {[%emt 0:00:05]} Rdd7 {[%emt 0:00:04]} 77. Rxd7 {[%emt 0:00:08]} Qxd7 {[%emt 0:00:01]} 78. Ra8 {[%emt 0:00:02]} Qd5+ {[%emt 0:00:04]} 79. Kg1 {[%emt 0:00:06]} Qd1+ {[%emt 0:00:49]} 80. Kg2 {[%emt 0:00:02]} Qg4+ {[%emt 0:00:05]} 81. Kf1 {[%emt 0:00:01]} Rd7 {[%emt 0:00:08]} 82. Ra7 {[%emt 0:00:01]} Qh3+ {[%emt 0:00:10]} 83. Ke2 {[%emt 0:00:03]} Qd3+ {[%emt 0:00:03]} 84. Ke1 {[%emt 0:00:03]} Qd1# {[%emt 0:00:01]} 0-1

[Event "Gibraltar Challengers B 2020"]
[Site "Caleta"]
[Date "2020.01.26"]
[Round "2.3"]
[White "Yanev, Pavel"]
[Black "Bengherabi, Khalil"]
[Result "1-0"]
[ECO "D05"]
[WhiteElo "2200"]
[BlackElo "2106"]
[Annotator "NA"]
[PlyCount "65"]
[EventDate "2020.01.20"]
[EventType "swiss"]
[EventCountry "GGB"]
[SourceTitle "playchess.com"]
[Source "ChessBase"]
[SourceQuality "1"]
[TimeControl "6600+10"]

1. Nf3 {[%emt 0:01:02]} c5 {[%emt 0:00:14]} 2. b3 {[%emt 0:01:36]} d5 {[%emt 0:08:53]} 3. e3 {[%emt 0:02:45]} Nf6 {[%emt 0:00:38]} 4. Bb2 {[%emt 0:00:58]} e6 {[%emt 0:04:49]} 5. d4 {[%emt 0:04:04]} Nbd7 {[%emt 0:04:01]} 6. Nbd2 {[%emt 0:02:16]} b6 {[%emt 0:00:31]} 7. Bd3 {[%emt 0:04:56]} Bb7 {[%emt 0:00:03]} 8. O-O {[%emt 0:01:28]} Be7 {[%emt 0:00:29]} 9. Ne5 {[%emt 0:05:24]} O-O {[%emt 0:00:23]} 10. Qf3 {[%emt 0:03:54]} cxd4 {[%emt 0:37:54]} 11. exd4 {[%emt 0:04:25]} Bb4 {[%emt 0:00:10]} 12. c3 {[%emt 0:07:55]} Bd6 {[%emt 0:01:31]} 13. Qe2 $14 {[%emt 0:02:12]} Qe7 {[%emt 0:06:00]} 14. a4 {[%emt 0:06:43]} a6 {[%emt 0:01:01]} 15. f4 {[%emt 0:13:36]} Rfe8 {[%emt 0:01:10]} 16. Rae1 {[%emt 0:01:50]} Nf8 {[%emt 0:00:21]} 17. g4 {[%emt 0:05:06]} N6d7 {[%emt 0:00:16]} 18. g5 {[%emt 0:02:12]} f5 {[%emt 0:13:07]} 19. gxf6 {[%emt 0:05:31]} gxf6 {[%emt 0:00:28]} 20. Qh5 {[%emt 0:07:50]} fxe5 {[%emt 0:17:54]} 21. fxe5 {[%emt 0:00:58]} Nxe5 {[%emt 0:00:28]} 22. dxe5 {[%emt 0:01:52]} Bc5+ {[%emt 0:00:46]} 23. Kg2 {[%emt 0:08:49]} d4+ {[%emt 0:04:31]} 24. Ne4 {[%emt 0:00:30]} dxc3 {[%emt 0:00:35]} 25. Bc1 {[%emt 0:03:56]} Qg7+ {[%emt 0:06:17]} 26. Kh3 {[%emt 0:01:29]} Rad8 {[%emt 0:00:19]} 27. Bc2 {[%emt 0:02:05]} Bxe4 {[%emt 0:00:58]} 28. Rxe4 {[%emt 0:01:26]} Kh8 {[%emt 0:00:32]} 29. Rg4 {[%emt 0:01:05]} Qc7 {[%emt 0:00:09]} 30. Bg5 {[%emt 0:01:57]} Be7 {[%emt 0:00:20]} 31. Rxf8+ {[%emt 0:00:34]} Bxf8 {[%emt 0:00:01]} 32. Bf6+ {[%emt 0:00:08]} Bg7 {[%emt 0:00:03]} 33. Qxh7# {[%emt 0:00:10]} 1-0

[Event "Gibraltar Challengers B 2020"]
[Site "Caleta"]
[Date "2020.01.26"]
[Round "2.4"]
[White "Gonzalez Gonzalez, Alfonso"]
[Black "Levay, Sorin"]
[Result "0-1"]
[ECO "B16"]
[WhiteElo "2100"]
[BlackElo "2192"]
[Annotator "NA"]
[PlyCount "186"]
[EventDate "2020.01.20"]
[EventType "swiss"]
[EventCountry "GGB"]
[SourceTitle "playchess.com"]
[Source "ChessBase"]
[SourceQuality "1"]
[TimeControl "6600+10"]

1. e4 {[%emt 0:00:00]} c6 {[%emt 0:09:02]} 2. Nc3 {[%emt 0:02:51]} d5 {[%emt 0:00:11]} 3. Nf3 {[%emt 0:00:04]} dxe4 {[%emt 0:00:05]} 4. Nxe4 {[%emt 0:00:12]} Nf6 {[%emt 0:00:06]} 5. Nxf6+ {[%emt 0:00:55]} gxf6 {[%emt 0:00:07]} 6. d4 {[%emt 0:00:36]} Bg4 {[%emt 0:00:08]} 7. Bc4 {[%emt 0:04:54]} e6 {[%emt 0:00:15] B16: Caro-Kann: Bronstein-Larsen Variation} 8. Be3 {[%emt 0:00:24]} Nd7 {[%emt 0:00:11]} 9. Qe2 {[%emt 0:03:02]} Nb6 {[%emt 0:01:20]} 10. Bb3 {[%emt 0:00:08]} Qc7 $146 {[%emt 0:00:47]} ({Predecessor:} 10... Nd5 11. h3 Bh5 12. g4 Bg6 13. Nd2 Qc7 14. O-O-O Bd6 15. Kb1 {½-½ (73) Hardarson,R (2295)-Solmundarson,M (2270) Reykjavik 1988}) 11. h3 {[%emt 0:02:04]} Bh5 {[%emt 0:01:51]} 12. g4 {[%emt 0:00:31]} Bg6 {[%emt 0:00:08]} 13. Nh4 {[%emt 0:00:21]} O-O-O {[%emt 0:00:48]} 14. Nxg6 {[%emt 0:00:29]} hxg6 {[%emt 0:00:08]} 15. O-O-O {[%emt 0:00:17]} Bh6 {[%emt 0:01:12]} 16. h4 {[%emt 0:05:40]} f5 {[%emt 0:02:40]} 17. Kb1 {[%emt 0:02:55]} fxg4 {[%emt 0:00:54]} 18. Qxg4 {[%emt 0:00:35]} Nd5 {[%emt 0:00:43]} 19. h5 {[%emt 0:05:34]} Bxe3 {[%emt 0:02:24]} 20. Bxd5 {[%emt 0:00:05]} Rxd5 {[%emt 0:02:40]} 21. hxg6 {[%emt 0:01:43]} Rxh1 {[%emt 0:00:26]} 22. Rxh1 {[%emt 0:00:33]} Bxd4 {[%emt 0:00:27]} 23. g7 {[%emt 0:04:49]} Bxg7 {[%emt 0:00:10]} 24. Qxg7 {[%emt 0:00:04]} Qd7 {[%emt 0:00:32]} 25. b3 {[%emt 0:08:12]} Rd1+ {[%emt 0:01:05]} 26. Rxd1 {[%emt 0:00:04]} Qxd1+ {[%emt 0:00:05]} 27. Kb2 {[%emt 0:00:03]} Qd7 {[%emt 0:00:08]} 28. Qh8+ {[%emt 0:02:00]} Qd8 {[%emt 0:01:05]} 29. Qg7 {[%emt 0:02:09]} Qe7 {[%emt 0:00:15]} 30. f4 {[%emt 0:00:09]} b6 {[%emt 0:00:24]} 31. a4 {[%emt 0:01:08]} Kd7 {[%emt 0:00:54]} 32. Qe5 {[%emt 0:00:57]} Kc8 {[%emt 0:01:40]} 33. a5 {[%emt 0:06:14]} bxa5 {[%emt 0:00:18]} 34. Qxa5 {[%emt 0:05:13]} Qf6+ {[%emt 0:00:29]} 35. Ka2 {[%emt 0:00:09]} Qxf4 {[%emt 0:00:15]} 36. Qa6+ {[%emt 0:01:35]} Kd7 {[%emt 0:00:23]} 37. Qxa7+ {[%emt 0:00:15]} Qc7 {[%emt 0:00:06]} 38. Qd4+ {[%emt 0:00:12]} Kc8 {[%emt 0:00:33]} 39. Qh8+ {[%emt 0:01:46]} Kb7 {[%emt 0:00:08]} 40. Qe8 {[%emt 0:00:28]} e5 {[%emt 0:00:26]} 41. Kb1 {[%emt 0:00:23]} f5 {[%emt 0:00:32]} 42. Qf8 {[%emt 0:02:56]} (42. Qe6 $17) 42... Qd7 {[%emt 0:00:26]} 43. Qb4+ {[%emt 0:00:25]} Kc7 {[%emt 0:01:34]} 44. Qa5+ $1 {[%emt 0:02:18]} Kd6 $11 {[%emt 0:00:06]} 45. Qd2+ {[%emt 0:00:22]} Ke7 {[%emt 0:01:10]} 46. Qg5+ {[%emt 0:00:10]} Kf7 {[%emt 0:01:57]} 47. Qh5+ {[%emt 0:00:30]} Ke6 {[%emt 0:00:31]} 48. Qh6+ {[%emt 0:00:19]} Ke7 {[%emt 0:00:42]} 49. Qg5+ {[%emt 0:00:37]} Kd6 $5 {[%emt 0:00:11]} 50. Qd2+ {[%emt 0:00:09]} Ke7 {[%emt 0:03:17]} 51. Qg5+ $1 {[%emt 0:00:06]} Kf7 $11 {[%emt 0:02:43]} 52. Qh5+ {[%emt 0:00:06]} Kg7 {[%emt 0:08:59]} 53. Qg5+ {[%emt 0:00:06]} Kf8 {[%emt 0:00:25]} 54. Qf6+ {[%emt 0:00:41]} Qf7 {[%emt 0:00:14]} 55. Qh8+ {[%emt 0:00:16]} Ke7 {[%emt 0:01:32]} 56. Qxe5+ {[%emt 0:00:06]} Qe6 {[%emt 0:00:05]} 57. Qg7+ {[%emt 0:01:16]} Kd6 {[%emt 0:00:11]} 58. Qf8+ {[%emt 0:01:10]} Kd5 {[%emt 0:00:52]} 59. Qd8+ {[%emt 0:01:32]} Qd6 {[%emt 0:00:22]} 60. Qg8+ {[%emt 0:00:52]} Ke5 {[%emt 0:00:26]} 61. Qh8+ {[%emt 0:00:29]} Qf6 {[%emt 0:00:11]} 62. Qb8+ {[%emt 0:00:49]} Ke4 {[%emt 0:00:29]} 63. Qb4+ {[%emt 0:00:29]} Qd4 {[%emt 0:01:21]} 64. Qe1+ {[%emt 0:02:08]} Qe3 {[%emt 0:00:13]} 65. Qb4+ {[%emt 0:00:43]} Kf3 {[%emt 0:00:26]} 66. Qh4 {[%emt 0:00:24]} Kg2 {[%emt 0:02:31]} 67. Qf6 {[%emt 0:03:54]} Qe4 {[%emt 0:02:03]} 68. Qg6+ {[%emt 0:01:25]} Kf1 {[%emt 0:00:53]} 69. Qh7 {[%emt 0:01:25]} Qf3 {[%emt 0:00:18]} 70. Qh2 {[%emt 0:03:34]} f4 {[%emt 0:00:37]} 71. Kb2 {[%emt 0:00:41]} c5 {[%emt 0:00:58]} 72. Qh6 {[%emt 0:03:29]} Ke1 {[%emt 0:01:11]} 73. Qh2 {[%emt 0:03:42]} Qg3 {[%emt 0:03:06]} 74. Qh1+ {[%emt 0:00:11]} Kf2 {[%emt 0:00:08]} 75. Qh5 {[%emt 0:01:02]} Qg7+ {[%emt 0:05:49]} 76. Kb1 {[%emt 0:01:28]} Qd4 {[%emt 0:01:34]} 77. Qh4+ {[%emt 0:01:14]} Ke2 {[%emt 0:00:19]} 78. Qh2+ {[%emt 0:00:20]} Qf2 {[%emt 0:00:08]} 79. Qh5+ {[%emt 0:00:09]} f3 {[%emt 0:00:13]} 80. Qe8+ {[%emt 0:03:15]} Kd2 {[%emt 0:00:36]} 81. Qd8+ {[%emt 0:00:23]} Qd4 {[%emt 0:00:30]} 82. Qa5+ {[%emt 0:00:22]} Kd1 {[%emt 0:02:59]} 83. Qb5 {[%emt 0:00:52]} Ke1 {[%emt 0:02:00]} 84. Qe8+ {[%emt 0:00:21]} Kd2 {[%emt 0:00:09]} 85. Qb5 {[%emt 0:02:47]} c4 {[%emt 0:01:51]} 86. Qg5+ {[%emt 0:00:12]} Ke2 {[%emt 0:00:41]} 87. Qh5 {[%emt 0:01:00]} c3 {[%emt 0:00:27]} 88. Ka2 {[%emt 0:00:24]} Qa7+ {[%emt 0:00:55]} 89. Kb1 {[%emt 0:00:04]} Qe3 {[%emt 0:00:15]} 90. b4 {[%emt 0:00:30]} Qe4 {[%emt 0:00:57]} 91. Qb5+ {[%emt 0:00:14]} Kd2 {[%emt 0:00:21]} 92. Qd7+ {[%emt 0:00:02]} Ke1 {[%emt 0:00:12]} 93. Qb5 {[%emt 0:00:31]} f2 {[%emt 0:00:10]} 0-1

[Event "Gibraltar Challengers B 2020"]
[Site "Caleta"]
[Date "2020.01.26"]
[Round "2.5"]
[White "Prieto Martin, Alfonso"]
[Black "Schouten, Freek"]
[Result "1-0"]
[ECO "B06"]
[WhiteElo "2181"]
[BlackElo "2084"]
[Annotator "NA"]
[PlyCount "127"]
[EventDate "2020.01.20"]
[EventType "swiss"]
[EventCountry "GGB"]
[SourceTitle "playchess.com"]
[Source "ChessBase"]
[SourceQuality "1"]
[TimeControl "6600+10"]

1. e4 {[%emt 0:10:46]} g6 {[%emt 0:00:00]} 2. d4 {[%emt 0:00:06]} Bg7 {[%emt 0:00:01]} 3. Nc3 {[%emt 0:00:43]} d6 {[%emt 0:00:08]} 4. Be3 {[%emt 0:02:25]} a6 {[%emt 0:00:58]} 5. Qd2 {[%emt 0:07:45]} Nd7 {[%emt 0:01:08]} 6. Nf3 {[%emt 0:01:26]} b5 {[%emt 0:01:59]} 7. a4 {[%emt 0:14:45]} b4 {[%emt 0:01:33]} 8. Nd5 {[%emt 0:01:05]} a5 {[%emt 0:06:29]} 9. Bc4 {[%emt 0:05:56]} e6 {[%emt 0:09:37]} 10. Nf4 {[%emt 0:01:01]} Nb6 {[%emt 0:00:44]} 11. Bb3 {[%emt 0:03:46]} Nf6 {[%emt 0:03:11]} 12. e5 {[%emt 0:08:06]} Ne4 $15 {[%emt 0:07:23]} 13. Qc1 {[%emt 0:01:56]} Ba6 {[%emt 0:13:53]} 14. Nd3 {[%emt 0:06:10]} Rc8 {[%emt 0:07:48]} 15. Bh6 {[%emt 0:07:44]} Bxh6 {[%emt 0:23:56]} 16. Qxh6 {[%emt 0:00:32]} Qe7 {[%emt 0:00:02]} 17. O-O {[%emt 0:09:54]} d5 {[%emt 0:07:46]} 18. Rfe1 {[%emt 0:02:14]} Nd7 {[%emt 0:03:02]} 19. Nf4 {[%emt 0:03:37]} c6 {[%emt 0:04:37]} 20. Rxe4 {[%emt 0:04:41]} dxe4 {[%emt 0:00:02]} 21. Ng5 {[%emt 0:00:25]} c5 {[%emt 0:04:16]} 22. Nxe4 {[%emt 0:00:46]} c4 {[%emt 0:00:58]} 23. Nd6+ {[%emt 0:01:17]} Kd8 {[%emt 0:00:09]} 24. Nxc8 {[%emt 0:02:03]} Kxc8 {[%emt 0:00:01]} 25. Ba2 {[%emt 0:00:22]} Nb6 {[%emt 0:02:11]} 26. Bb1 {[%emt 0:01:45]} Bb7 {[%emt 0:02:21]} 27. c3 {[%emt 0:00:57]} b3 {[%emt 0:00:25]} 28. f3 {[%emt 0:03:45]} Qf8 {[%emt 0:03:51]} 29. Qxf8+ {[%emt 0:01:39]} Rxf8 {[%emt 0:00:01]} 30. Be4 {[%emt 0:00:22]} Kc7 {[%emt 0:02:14]} 31. Bxb7 {[%emt 0:02:17]} Kxb7 {[%emt 0:00:01]} 32. Kf2 {[%emt 0:00:29]} Kc6 {[%emt 0:00:33]} 33. Ke3 {[%emt 0:00:46]} h6 {[%emt 0:01:36]} 34. Ke4 {[%emt 0:00:13]} Rd8 {[%emt 0:00:18]} 35. h4 {[%emt 0:00:27]} Re8 {[%emt 0:00:10]} 36. Nh3 {[%emt 0:00:34]} Rg8 {[%emt 0:00:08]} 37. Nf2 {[%emt 0:00:04]} h5 {[%emt 0:00:27]} 38. Nh3 {[%emt 0:00:02]} Kd7 {[%emt 0:00:34]} 39. Ng5 {[%emt 0:00:09]} Ke7 {[%emt 0:00:04]} 40. Nh7 {[%emt 0:00:13]} Nd5 {[%emt 0:00:44]} 41. Rd1 {[%emt 0:01:18]} Rb8 {[%emt 0:00:20]} 42. Nf6 {[%emt 0:00:17]} Nxf6+ {[%emt 0:00:31]} 43. exf6+ {[%emt 0:00:01]} Kxf6 {[%emt 0:00:06]} 44. d5 {[%emt 0:00:01]} exd5+ {[%emt 0:00:24]} 45. Rxd5 {[%emt 0:00:02]} Re8+ {[%emt 0:00:11]} 46. Kd4 {[%emt 0:00:15]} Re2 {[%emt 0:00:04]} 47. g4 {[%emt 0:01:01]} hxg4 {[%emt 0:00:22]} 48. fxg4 {[%emt 0:00:02]} Rxb2 {[%emt 0:00:11]} 49. Kxc4 {[%emt 0:00:04]} Rh2 {[%emt 0:00:11]} 50. Kxb3 {[%emt 0:00:13]} Rxh4 {[%emt 0:00:08]} 51. g5+ {[%emt 0:00:02]} Ke6 {[%emt 0:00:02]} 52. Rxa5 {[%emt 0:00:01]} f5 {[%emt 0:00:18]} 53. gxf6 {[%emt 0:00:24]} Kxf6 {[%emt 0:00:02]} 54. Ra8 {[%emt 0:00:17]} g5 {[%emt 0:00:04]} 55. a5 {[%emt 0:00:05]} Rh1 {[%emt 0:00:37]} 56. Kb4 {[%emt 0:01:09]} g4 {[%emt 0:00:07]} 57. Rg8 {[%emt 0:00:03]} Kf5 {[%emt 0:00:17]} 58. a6 {[%emt 0:00:08]} Ra1 {[%emt 0:00:08]} 59. Kb5 {[%emt 0:00:02]} Ra3 {[%emt 0:00:16]} 60. c4 {[%emt 0:00:05]} Kf4 {[%emt 0:00:09]} 61. c5 {[%emt 0:00:05]} g3 {[%emt 0:00:06]} 62. c6 {[%emt 0:00:03]} Kf3 {[%emt 0:00:03]} 63. c7 {[%emt 0:00:03]} Rc3 {[%emt 0:00:01]} 64. c8=Q {[%emt 0:00:02]} 1-0